fUSD/lending_fUSD_20260108
["ID","MTS","AMOUNT","RATE_DAILY","PERIOD"]
[400894298,1767856241231,-151.0,0.0001518,2]
[400894300,1767856241240,-151.0,0.0001518,2]
[400894302,1767856241249,-151.0,0.0001518,2]
[400894304,1767856241258,-1582.68,0.00015273,2]
[400894306,1767856241274,-1000.0,0.00015277,2]
[400894308,1767856241290,-1000.0,0.00015295,2]
[400894310,1767856241301,-503.33948311,0.0001531,2]
[400894312,1767856241311,-1000.0,0.0001531,2]
[400894314,1767856241323,-1056.63084022,0.0001531,2]
[400894316,1767856241333,-1000.0,0.0001531,2]
[400894318,1767856241343,-1000.0,0.0001531,2]
[400894320,1767856241353,-1000.0,0.0001531,2]
[400894322,1767856241363,-1000.0,0.0001531,2]
[400894324,1767856241372,-212.65120656,0.0001531,2]
[400894326,1767856241382,-1000.0,0.0001531,2]
[400894328,1767856241392,-1000.0,0.0001531,2]
[400894330,1767856241401,-1000.0,0.0001531,2]
[400894332,1767856241410,-412.45872532,0.0001531,2]
[400894334,1767856241419,-1000.0,0.0001531,2]
[400894336,1767856241429,-1000.0,0.0001531,2]
[400894338,1767856241439,-1000.0,0.0001531,2]
[400894340,1767856241448,-658.23019616,0.0001531,2]
[400894342,1767856241457,-1000.0,0.0001531,2]
[400894344,1767856241467,-1000.0,0.0001531,2]
[400894346,1767856241476,-1000.0,0.0001531,2]
[400894348,1767856241486,-1011.09296657,0.0001531,2]
[400894350,1767856241498,-1000.0,0.0001531,2]
[400894352,1767856241507,-1000.0,0.0001531,2]
[400894354,1767856241516,-1000.0,0.0001531,2]
[400894356,1767856241526,-501.84542925,0.0001531,2]
[400894358,1767856241535,-16031.55802498,0.00015424,2]
[400894360,1767856241545,-12760.04815272,0.00015424,2]
[400894362,1767856241555,-1582.68,0.00015547,2]
[400894364,1767856241564,-1000.0,0.00015604,2]
[400894366,1767856241573,-755.93468828,0.00015624,2]
[400894368,1767856241583,-600.0,0.0001574,2]
[400894370,1767856241593,-180.38,0.0001574,2]
[400894371,1767856241602,-1574.28,0.00015753,2]
[400894373,1767856241611,-650.63,0.00015803,2]
[400894375,1767856241620,-1582.68,0.00015821,2]
[400894377,1767856241629,-200.589792,0.00015855,2]
[400894379,1767856241638,-1004.82287623,0.00015858,2]
[400894381,1767856241650,-1030.62564826,0.00015858,2]
[400894383,1767856241659,-1500.0,0.00015858,2]
[400894385,1767856241670,-1500.0,0.00015858,2]
[400894388,1767856241680,-665.71915277,0.00015858,2]
[400894390,1767856241689,-1453.03832283,0.00015858,2]
[400894391,1767856241703,-1500.0,0.00015858,2]
[400894393,1767856241712,-322.81176918,0.00015858,2]
[400894395,1767856241722,-1500.0,0.00015858,2]
[400894397,1767856241732,-877.66780599,0.00015858,2]
[400894399,1767856241741,-1500.0,0.00015858,2]
[400894401,1767856241750,-509.92734084,0.00015858,2]
[400894403,1767856241760,-485.97149483,0.00015858,2]
[400894405,1767856241769,-1500.0,0.00015858,2]
[400894407,1767856241778,-1500.0,0.00015858,2]
[400894409,1767856241788,-629.4325829,0.00015858,2]
[400894411,1767856241799,-1500.0,0.00015858,2]
[400894413,1767856241808,-4254.47388749,0.000159,2]
[400894415,1767856241817,-360.97,0.00015917,2]
[400894417,1767856241827,-200.0,0.00016,2]
[400894419,1767856241836,-1043.35394918,0.00016004,2]
[400894421,1767856241846,-151.0,0.00016004,2]
[400894423,1767856241855,-270.73180541,0.00016004,2]
[400894425,1767856241864,-209.40437684,0.00016004,2]
[400894427,1767856241877,-500.0,0.00016004,2]
[400894429,1767856241886,-500.0,0.00016004,2]
[400894431,1767856241896,-500.0,0.00016004,2]
[400894433,1767856241905,-500.0,0.00016004,2]
[400894435,1767856241914,-500.0,0.00016004,2]
[400894437,1767856241924,-500.0,0.00016004,2]
[400894439,1767856241934,-574.12855637,0.00016004,2]
[400894441,1767856241942,-500.0,0.00016004,2]
[400894443,1767856241951,-578.20924308,0.00016004,2]
[400894444,1767856241961,-500.0,0.00016004,2]
[400894445,1767856241971,-500.0,0.00016004,2]
[400894446,1767856241980,-500.0,0.00016004,2]
[400894447,1767856241989,-500.0,0.00016004,2]
[400894448,1767856241999,-500.0,0.00016004,2]
[400894449,1767856242008,-500.0,0.00016004,2]
[400894450,1767856242018,-500.0,0.00016004,2]
[400894451,1767856242027,-500.0,0.00016004,2]
[400894452,1767856242037,-500.0,0.00016004,2]
[400894453,1767856242046,-500.0,0.00016004,2]
[400894454,1767856242056,-500.0,0.00016004,2]
[400894455,1767856242066,-500.0,0.00016004,2]
[400894456,1767856242075,-500.0,0.00016004,2]
[400894457,1767856242085,-500.0,0.00016004,2]
[400894459,1767856242095,-500.0,0.00016004,2]
[400894461,1767856242104,-500.0,0.00016004,2]
[400894463,1767856242113,-500.0,0.00016004,2]
[400894465,1767856242123,-500.0,0.00016004,2]
[400894467,1767856242132,-500.0,0.00016004,2]
[400894468,1767856242141,-500.0,0.00016004,2]
[400894470,1767856242151,-500.0,0.00016004,2]
[400894472,1767856242161,-500.0,0.00016004,2]
[400894501,1767856242417,-500.0,0.00016004,2]
[400894504,1767856242427,-500.0,0.00016004,2]
[400894505,1767856242437,-500.0,0.00016004,2]
[400894508,1767856242448,-500.0,0.00016004,2]
[400894510,1767856242460,-322.6107,0.00016004,2]
[400894512,1767856242469,-500.0,0.00016004,2]
[400894514,1767856242479,-151.0,0.00016004,2]
[400894516,1767856242488,-500.0,0.00016004,2]
[400894518,1767856242497,-500.0,0.00016004,2]
[400894520,1767856242507,-1500.0,0.00016004,2]
[400894522,1767856242516,-500.0,0.00016004,2]
[400894524,1767856242526,-169.1378307,0.00016004,2]
[400894526,1767856242537,-1500.0,0.00016004,2]
[400894527,1767856242547,-500.0,0.00016004,2]
[400894530,1767856242556,-500.0,0.00016004,2]
[400894531,1767856242565,-1500.0,0.00016004,2]
[400894534,1767856242575,-500.0,0.00016004,2]
[400894535,1767856242584,-500.0,0.00016004,2]
[400894538,1767856242595,-1500.0,0.00016004,2]
[400894540,1767856242605,-500.0,0.00016004,2]
[400894542,1767856242616,-500.0,0.00016004,2]
[400894544,1767856242626,-1500.0,0.00016004,2]
[400894546,1767856242635,-500.0,0.00016004,2]
[400894548,1767856242645,-500.0,0.00016004,2]
[400894549,1767856242655,-498.61515312,0.00016004,2]
[400894551,1767856242665,-151.66241854,0.00016004,2]
[400894553,1767856242674,-620.0,0.00016004,2]
[400894556,1767856242685,-2000.0,0.00016004,2]
[400894558,1767856242695,-2000.0,0.00016004,2]
[400894560,1767856242705,-2000.0,0.00016004,2]
[400894562,1767856242715,-1500.0,0.00016004,2]
[400894564,1767856242725,-2000.0,0.00016004,2]
[400894566,1767856242734,-1500.0,0.00016004,2]
[400894568,1767856242744,-2000.0,0.00016004,2]
[400894570,1767856242754,-1500.0,0.00016004,2]
[400894572,1767856242763,-2000.0,0.00016004,2]
[400894574,1767856242773,-1500.0,0.00016004,2]
[400894576,1767856242783,-2000.0,0.00016004,2]
[400894578,1767856242794,-1500.0,0.00016004,2]
[400894581,1767856242806,-2000.0,0.00016004,2]
[400894583,1767856242815,-1500.0,0.00016004,2]
[400894586,1767856242825,-2000.0,0.00016004,2]
[400894588,1767856242835,-2000.0,0.00016004,2]
[400894590,1767856242846,-2000.0,0.00016004,2]
[400894592,1767856242857,-500.0,0.00016004,2]
[400894594,1767856242867,-622.14655061,0.00016004,2]
[400894596,1767856242881,-736.0,0.00016007,2]
[400894598,1767856242891,-16031.55802498,0.00016043,2]
[400894600,1767856242901,-12760.04815272,0.00016043,2]
[400894602,1767856242911,-15419.0,0.00016043,2]
[400894604,1767856242920,-1582.68,0.00016095,2]
[400894606,1767856242930,-500.0,0.00016106,2]
[400894608,1767856242939,-9999.99,0.00016116,2]
[400894610,1767856242949,-1240.88,0.00016116,2]
[400894612,1767856242958,-565.89,0.00016127,2]
[400894614,1767856242967,-150.0,0.000162,2]
[400894616,1767856242976,-150.0,0.00016246,2]
[400894618,1767856242986,-250.0,0.00016289,2]
[400894620,1767856242996,-150.0,0.00016292,2]
[400894622,1767856243005,-823.0,0.00016293,2]
[400894624,1767856243015,-823.0,0.00016293,2]
[400894626,1767856243025,-737.13729626,0.00016338,2]
[400894628,1767856243035,-150.0,0.00016338,2]
[400894630,1767856243044,-1582.68,0.00016369,2]
[400894632,1767856243054,-157.72323008,0.00016378,2]
[400894634,1767856243064,-150.0,0.00016385,2]
[400894636,1767856243074,-162.0,0.000164,2]
[400894638,1767856243084,-833.0,0.000164,2]
[400894640,1767856243094,-162.0,0.000164,2]
[400894642,1767856243104,-162.0,0.000164,2]
[400894644,1767856243113,-162.0,0.000164,2]
[400894646,1767856243123,-162.0,0.000164,2]
[400894648,1767856243133,-2000.0,0.00016406,2]
[400894650,1767856243143,-2000.0,0.00016406,2]
[400894652,1767856243152,-2000.0,0.00016406,2]
[400894654,1767856243162,-2000.0,0.00016406,2]
[400894656,1767856243172,-2000.0,0.00016406,2]
[400894658,1767856243181,-2000.0,0.00016406,2]
[400894660,1767856243190,-2000.0,0.00016406,2]
[400894662,1767856243200,-2000.0,0.00016406,2]
[400894664,1767856243210,-3292.0,0.00016409,2]
[400894666,1767856243219,-1594.0,0.0001642,2]
[400894668,1767856243229,-150.0,0.00016431,2]
[400894670,1767856243239,-500.0,0.00016437,2]
[400894672,1767856243249,-2006.97298513,0.00016438,2]
[400894674,1767856243258,-2006.97298513,0.00016438,2]
[400894676,1767856243267,-2006.97298513,0.00016438,2]
[400894678,1767856243276,-2006.97298513,0.00016438,2]
[400894680,1767856243286,-2006.97298513,0.00016438,2]
[400894682,1767856243295,-2006.97298513,0.00016438,2]
[400894684,1767856243305,-2006.97298513,0.00016438,2]
[400894686,1767856243315,-2006.97298513,0.00016438,2]
[400894688,1767856243324,-2006.97298513,0.00016438,2]
[400894690,1767856243334,-2006.97298513,0.00016438,2]
[400894692,1767856243344,-2006.97298513,0.00016438,2]
[400894694,1767856243353,-2006.97298513,0.00016438,2]
[400894696,1767856243363,-2006.97298513,0.00016438,2]
[400894698,1767856243372,-2006.97298513,0.00016438,2]
[400894700,1767856243382,-2006.97298513,0.00016438,2]
[400894702,1767856243392,-2006.97298513,0.00016438,2]
[400894704,1767856243403,-2006.97298513,0.00016438,2]
[400894706,1767856243412,-2006.97298513,0.00016438,2]
[400894708,1767856243422,-2006.97298513,0.00016438,2]
[400894710,1767856243432,-2006.97298513,0.00016438,2]
[400894712,1767856243441,-2006.97298513,0.00016438,2]
[400894714,1767856243451,-2006.97298513,0.00016438,2]
[400894716,1767856243460,-2006.97298513,0.00016438,2]
[400894718,1767856243470,-2006.97298513,0.00016438,2]
[400894720,1767856243479,-2006.97298513,0.00016438,2]
[400894722,1767856243489,-2006.97298513,0.00016438,2]
[400894724,1767856243499,-2006.97298513,0.00016438,2]
[400894726,1767856243508,-2006.97298513,0.00016438,2]
[400894728,1767856243519,-2006.97298513,0.00016438,2]
[400894730,1767856243529,-2006.97298513,0.00016438,2]
[400894732,1767856243538,-2006.97298513,0.00016438,2]
[400894734,1767856243548,-2006.97298513,0.00016438,2]
[400894736,1767856243558,-2006.97298513,0.00016438,2]
[400894738,1767856243568,-2006.97298513,0.00016438,2]
[400894740,1767856243578,-2006.97298513,0.00016438,2]
[400894742,1767856243588,-2006.97298513,0.00016438,2]
[400894745,1767856243599,-2006.97298513,0.00016438,2]
[400894747,1767856243608,-2006.97298513,0.00016438,2]
[400894748,1767856243618,-2006.97298513,0.00016438,2]
[400894750,1767856243628,-2006.97298513,0.00016438,2]
[400894752,1767856243639,-2006.97298513,0.00016438,2]
[400894755,1767856243651,-2006.97298513,0.00016438,2]
[400894757,1767856243660,-2006.97298513,0.00016438,2]
[400894759,1767856243670,-2006.97298513,0.00016438,2]
[400894761,1767856243680,-2006.97298513,0.00016438,2]
[400894763,1767856243689,-2006.97298513,0.00016438,2]
[400894764,1767856243698,-2006.97298513,0.00016438,2]
[400894766,1767856243708,-2006.97298513,0.00016438,2]
[400894769,1767856243718,-2006.97298513,0.00016438,2]
[400894771,1767856243727,-2006.97298513,0.00016438,2]
[400894772,1767856243736,-2006.97298513,0.00016438,2]
[400894775,1767856243746,-1996.40996941,0.00016438,2]
[400894777,1767856243756,-1996.40996941,0.00016438,2]
[400894778,1767856243765,-1996.40996941,0.00016438,2]
[400894780,1767856243775,-1996.40996941,0.00016438,2]
[400894782,1767856243785,-1996.40996941,0.00016438,2]
[400894785,1767856243795,-1996.40996941,0.00016438,2]
[400894787,1767856243808,-1996.40996941,0.00016438,2]
[400894789,1767856243818,-1996.40996941,0.00016438,2]
[400894790,1767856243827,-1996.40996941,0.00016438,2]
[400894793,1767856243839,-1996.40996941,0.00016438,2]
[400894794,1767856243848,-1996.40996941,0.00016438,2]
[400894796,1767856243857,-1996.40996941,0.00016438,2]
[400894799,1767856243867,-1996.40996941,0.00016438,2]
[400894801,1767856243877,-1996.40996941,0.00016438,2]
[400894803,1767856243888,-1996.40996941,0.00016438,2]
[400894805,1767856243899,-1996.40996941,0.00016438,2]
[400894806,1767856243908,-1996.40996941,0.00016438,2]
[400894809,1767856243918,-1996.40996941,0.00016438,2]
[400894810,1767856243929,-1996.40996941,0.00016438,2]
[400894813,1767856243940,-1996.40996941,0.00016438,2]
[400894815,1767856243950,-1996.40996941,0.00016438,2]
[400894817,1767856243960,-1996.40996941,0.00016438,2]
[400894819,1767856243969,-1996.40996941,0.00016438,2]
[400894820,1767856243978,-1996.40996941,0.00016438,2]
[400894822,1767856243987,-1996.40996941,0.00016438,2]
[400894825,1767856243997,-1996.40996941,0.00016438,2]
[400894827,1767856244007,-1996.40996941,0.00016438,2]
[400894829,1767856244017,-1996.40996941,0.00016438,2]
[400894832,1767856244027,-1996.40996941,0.00016438,2]
[400894834,1767856244036,-1996.40996941,0.00016438,2]
[400894837,1767856244046,-1996.40996941,0.00016438,2]
[400894839,1767856244055,-1996.40996941,0.00016438,2]
[400894842,1767856244065,-1996.40996941,0.00016438,2]
[400894846,1767856244074,-1996.40996941,0.00016438,2]
[400894848,1767856244083,-1996.40996941,0.00016438,2]
[400894851,1767856244093,-1996.40996941,0.00016438,2]
[400894855,1767856244103,-1996.40996941,0.00016438,2]
[400894858,1767856244113,-1996.40996941,0.00016438,2]
[400894860,1767856244123,-500.0,0.00016438,2]
[400894863,1767856244132,-21086.94,0.00016438,2]
[400894866,1767856244142,-800.0,0.00016438,2]
[400894870,1767856244154,-1574.28,0.00016438,2]
[400894872,1767856244163,-3956.53,0.00016444,2]
[400894875,1767856244173,-500.0,0.00016458,2]
[400894879,1767856244183,-150.0,0.00016477,2]
[400894882,1767856244193,-500.0,0.00016493,2]
[400894885,1767856244203,-156.17127083,0.00016507,2]
[400894888,1767856244213,-977.93746514,0.00016521,2]
[400894891,1767856244224,-150.0,0.00016523,2]
[400894894,1767856244234,-500.0,0.00016548,2]
[400894897,1767856244244,-157.22325972,0.00016552,2]
[400894900,1767856244254,-217.15233878,0.00016552,2]
[400894903,1767856244264,-595.37131296,0.00016552,2]
[400894905,1767856244273,-151.0,0.00016552,2]
[400894908,1767856244283,-150.0,0.00016569,2]
[400894910,1767856244292,-500.0,0.00016575,2]
[400894912,1767856244301,-600.0,0.00016591,2]
[400894914,1767856244311,-180.38,0.00016591,2]
[400894916,1767856244320,-195.08159117,0.00016602,2]
[400894918,1767856244329,-150.0,0.00016615,2]
[400894920,1767856244339,-5704.04,0.00016621,2]
[400894922,1767856244349,-1000.0,0.00016627,2]
[400894924,1767856244359,-650.63,0.00016634,2]
[400894926,1767856244368,-3895.88,0.00016642,2]
[400894928,1767856244378,-1582.78859706,0.00016643,2]
[400894930,1767856244387,-150.0,0.00016662,2]
[400894932,1767856244397,-16031.55802498,0.00016662,2]
[400894934,1767856244406,-12760.04815272,0.00016662,2]
[400894936,1767856244416,-961.02856894,0.00016681,2]
[400894938,1767856244426,-150.0,0.00016708,2]
[400894940,1767856244435,-162.0,0.0001672,2]
[400894942,1767856244444,-833.0,0.0001672,2]
[400894944,1767856244454,-1000.0,0.00016722,2]
[400894946,1767856244463,-304.30680198,0.00016732,2]
[400894948,1767856244473,-150.0,0.00016754,2]
[400894950,1767856244482,-360.97,0.00016758,2]
[400894952,1767856244491,-150.0,0.000168,2]
[400894953,1767856244500,-1000.0,0.00016805,2]
[400894954,1767856244510,-150.0,0.00016846,2]
[400894955,1767856244520,-180.0,0.00016864,2]
[400894956,1767856244529,-1000.0,0.00016869,2]
[400894958,1767856244539,-1000.0,0.00016885,2]
[400894960,1767856244549,-150.0,0.00016892,2]
[400894962,1767856244561,-321.19386593,0.000169,2]
[400894964,1767856244570,-157.72323008,0.00016924,2]
[400894966,1767856244579,-150.0,0.00016938,2]
[400894968,1767856244589,-1000.0,0.00016949,2]
[400894970,1767856244598,-1356.56087805,0.00016954,2]
[400894972,1767856244607,-2500.0,0.00016954,2]
[400894974,1767856244618,-1505.81602002,0.00016954,2]
[400894976,1767856244628,-2500.0,0.00016954,2]
[400894979,1767856244638,-2500.0,0.00016954,2]
[400894981,1767856244649,-2487.99755872,0.00016954,2]
[400894982,1767856244658,-2500.0,0.00016954,2]
[400894984,1767856244668,-1976.3156368,0.00016954,2]
[400894987,1767856244678,-150.0,0.00016985,2]
[400894989,1767856244687,-460114.76632926,0.00016986,2]
[400895072,1767856245461,-90349.76367074,0.00016986,2]
[400895075,1767856245470,-597.48671046,0.00017,2]
[400895077,1767856245480,-150.0,0.00017031,2]
[400895078,1767856245489,-833.0,0.0001704,2]
[400895080,1767856245498,-162.0,0.0001704,2]
[400895082,1767856245507,-833.0,0.0001704,2]
[400895084,1767856245518,-833.0,0.0001704,2]
[400895086,1767856245528,-162.0,0.0001704,2]
[400895089,1767856245537,-162.0,0.0001704,2]
[400895090,1767856245546,-833.0,0.0001704,2]
[400895093,1767856245556,-150.0,0.00017077,2]
[400895095,1767856245565,-1000.0,0.00017079,2]
[400895097,1767856245574,-150.0,0.00017089,2]
[400895098,1767856245583,-225.18697532,0.000171,2]
[400895100,1767856245593,-617.40005154,0.000171,2]
[400895103,1767856245603,-151.0,0.000171,2]
[400895105,1767856245612,-20452.74518303,0.000171,2]
[400895106,1767856245621,-321.19386593,0.000171,2]
[400895108,1767856245632,-737.13729626,0.00017119,2]
[400895111,1767856245641,-150.0,0.00017123,2]
[400895113,1767856245653,-2276.96201759,0.00017137,2]
[400895115,1767856245663,-5242.82669963,0.00017139,2]
[400895117,1767856245673,-1000.0,0.00017139,2]
[400895119,1767856245682,-1000.0,0.00017146,2]
[400895121,1767856245691,-1000.0,0.00017163,2]
[400895123,1767856245700,-150.0,0.00017169,2]
[400895125,1767856245710,-150.0,0.00017178,2]
[400895127,1767856245719,-150.0,0.00017178,2]
[400895129,1767856245729,-150.0,0.00017178,2]
[400895131,1767856245738,-150.0,0.00017178,2]
[400895133,1767856245747,-150.0,0.00017178,2]
[400895135,1767856245757,-150.0,0.00017178,2]
[400895136,1767856245767,-150.0,0.00017178,2]
[400895138,1767856245776,-150.0,0.00017178,2]
[400895140,1767856245785,-833.4,0.00017195,2]
[400895143,1767856245795,-150.0,0.00017215,2]
[400895144,1767856245813,-150.0,0.00017223,2]
[400895147,1767856245834,-769.53055104,0.00017225,2]
[400895149,1767856245843,-166.04276169,0.00017226,2]
[400895151,1767856245853,-300.0,0.00017249,2]
[400895152,1767856245864,-150.0,0.00017262,2]
[400895155,1767856245874,-300.0,0.00017264,2]
[400895156,1767856245883,-833.4,0.00017268,2]
[400895158,1767856245892,-16031.55802498,0.00017281,2]
[400895160,1767856245902,-12760.04815272,0.00017281,2]
[400895162,1767856245911,-300.0,0.00017283,2]
[400895164,1767856245920,-5888.0,0.00017283,2]
[400895166,1767856245930,-150.0,0.00017295,2]
[400895168,1767856245939,-321.19386593,0.000173,2]
[400895170,1767856245949,-300.0,0.00017303,2]
[400895172,1767856245958,-300.0,0.00017307,2]
[400895175,1767856245968,-150.0,0.00017308,2]
[400895177,1767856245977,-1000.0,0.00017312,2]
[400895179,1767856245986,-150.0,0.00017315,2]
[400895180,1767856245995,-300.0,0.00017316,2]
[400895182,1767856246004,-300.0,0.00017318,2]
[400895184,1767856246014,-150.0,0.00017319,2]
[400895187,1767856246023,-300.0,0.00017328,2]
[400895189,1767856246032,-300.0,0.00017337,2]
[400895191,1767856246042,-833.4,0.00017341,2]
[400895192,1767856246051,-300.0,0.00017343,2]
[400895195,1767856246060,-300.0,0.00017345,2]
[400895197,1767856246069,-150.0,0.00017354,2]
[400895199,1767856246079,-833.0,0.0001736,2]
[400895201,1767856246088,-162.0,0.0001736,2]
[400895203,1767856246097,-162.0,0.0001736,2]
[400895205,1767856246106,-833.0,0.0001736,2]
[400895206,1767856246115,-162.0,0.0001736,2]
[400895208,1767856246124,-334.5472959,0.00017373,2]
[400895210,1767856246134,-642.94,0.00017373,2]
[400895213,1767856246144,-300.0,0.00017375,2]
[400895214,1767856246153,-300.0,0.00017375,2]
[400895216,1767856246164,-469.50438451,0.00017389,2]
[400895218,1767856246173,-150.0,0.00017393,2]
[400895220,1767856246182,-300.0,0.00017396,2]
[400895222,1767856246192,-150.0,0.000174,2]
[400895224,1767856246201,-1000.0,0.000174,2]
[400895226,1767856246210,-300.0,0.00017411,2]
[400895228,1767856246220,-1252.0,0.00017412,2]
[400895230,1767856246229,-300.0,0.00017414,2]
[400895232,1767856246238,-833.4,0.00017415,2]
[400895234,1767856246247,-300.0,0.00017425,2]
[400895236,1767856246256,-150.0,0.00017442,2]
[400895238,1767856246265,-1330.0,0.00017443,2]
[400895240,1767856246274,-621.371,0.00017443,2]
[400895242,1767856246283,-3467.0,0.00017443,2]
[400895244,1767856246292,-505.0,0.00017443,2]
[400895246,1767856246301,-1284.259,0.00017443,2]
[400895248,1767856246310,-1209.372,0.00017443,2]
[400895250,1767856246319,-923.791,0.00017443,2]
[400895252,1767856246328,-2563.502,0.00017443,2]
[400895254,1767856246338,-565.0,0.00017443,2]
[400895256,1767856246349,-4819.0,0.00017443,2]
[400895258,1767856246359,-300.0,0.00017443,2]
[400895260,1767856246368,-300.0,0.00017446,2]
[400895262,1767856246377,-150.0,0.00017446,2]
[400895264,1767856246386,-1000.0,0.00017458,2]
[400895266,1767856246396,-1000.0,0.0001746,2]
[400895268,1767856246406,-433.54,0.00017462,2]
[400895270,1767856246416,-300.0,0.00017466,2]
[400895272,1767856246425,-650.63,0.00017466,2]
[400895274,1767856246434,-300.0,0.00017468,2]
[400895276,1767856246443,-157.72323008,0.0001747,2]
[400895278,1767856246452,-150.0,0.00017476,2]
[400895280,1767856246463,-433.54,0.00017481,2]
[400895282,1767856246472,-300.0,0.00017482,2]
[400895284,1767856246482,-300.0,0.00017485,2]
[400895286,1767856246491,-300.0,0.00017486,2]
[400895288,1767856246500,-833.4,0.00017488,2]
[400895290,1767856246509,-300.0,0.00017492,2]
[400895292,1767856246518,-150.0,0.00017492,2]
[400895294,1767856246527,-300.0,0.00017496,2]
[400895296,1767856246536,-300.0,0.00017497,2]
[400895298,1767856246545,-300.0,0.00017498,2]
[400895300,1767856246554,-2000.0,0.000175,2]
[400895302,1767856246564,-1000.0,0.000175,2]
[400895304,1767856246573,-300.0,0.000175,2]
[400895306,1767856246582,-433.53423452,0.000175,2]
[400895308,1767856246592,-300.0,0.00017501,2]
[400895309,1767856246601,-1520.5636209,0.00017502,2]
[400895312,1767856246611,-3000.0,0.00017502,2]
[400895313,1767856246620,-3000.0,0.00017502,2]
[400895315,1767856246630,-3000.0,0.00017502,2]
[400895317,1767856246639,-300.0,0.00017518,2]
[400895319,1767856246648,-300.0,0.00017519,2]
[400895321,1767856246658,-300.0,0.0001752,2]
[400895323,1767856246667,-300.0,0.00017526,2]
[400895325,1767856246676,-300.0,0.00017529,2]
[400895327,1767856246685,-300.0,0.00017531,2]
[400895329,1767856246694,-1042.30773041,0.00017534,2]
[400895331,1767856246703,-150.0,0.00017538,2]
[400895333,1767856246712,-300.0,0.00017549,2]
[400895335,1767856246721,-833.4,0.00017561,2]
[400895337,1767856246730,-300.0,0.00017564,2]
[400895339,1767856246739,-300.0,0.0001757,2]
[400895341,1767856246748,-300.0,0.0001757,2]
[400895343,1767856246758,-300.0,0.00017572,2]
[400895345,1767856246767,-150.0,0.00017585,2]
[400895347,1767856246776,-300.0,0.0001759,2]
[400895349,1767856246785,-1000.0,0.00017592,2]
[400895351,1767856246795,-300.0,0.00017598,2]
[400895353,1767856246807,-300.0,0.00017598,2]
[400895355,1767856246816,-1000.0,0.000176,2]
[400895357,1767856246826,-300.0,0.00017604,2]
[400895361,1767856246835,-1062.0,0.00017617,2]
[400895364,1767856246845,-300.0,0.00017618,2]
[400895366,1767856246854,-300.0,0.0001762,2]
[400895368,1767856246863,-150.0,0.00017623,2]
[400895371,1767856246873,-300.0,0.00017627,2]
[400895372,1767856246882,-160.43,0.00017627,2]
[400895375,1767856246891,-150.0,0.00017631,2]
[400895376,1767856246900,-300.0,0.00017631,2]
[400895378,1767856246910,-833.4,0.00017634,2]
[400895380,1767856246919,-9878.63877895,0.0001764,2]
[400895382,1767856246929,-300.0,0.00017643,2]
[400895384,1767856246942,-300.0,0.00017644,2]
[400895387,1767856246951,-150.0,0.00017644,2]
[400895389,1767856246961,-263.14162042,0.00017648,2]
[400895391,1767856246970,-640.24385345,0.00017648,2]
[400895393,1767856246980,-175.29912762,0.00017648,2]
[400895395,1767856246989,-160.43,0.00017656,2]
[400895397,1767856246998,-150.0,0.00017658,2]
[400895398,1767856247009,-300.0,0.00017663,2]
[400895400,1767856247018,-300.0,0.00017665,2]
[400895402,1767856247027,-150.0,0.00017677,2]
[400895404,1767856247036,-833.0,0.0001768,2]
[400895406,1767856247046,-833.0,0.0001768,2]
[400895408,1767856247055,-182.0,0.0001768,2]
[400895410,1767856247073,-300.0,0.00017683,2]
[400895412,1767856247082,-160.42360576,0.00017686,2]
[400895414,1767856247091,-300.0,0.00017693,2]
[400895416,1767856247100,-300.0,0.00017696,2]